[Event "EIWCC 2018"]
[Site "Vysoke Tatry"]
[Date "2018.04.11"]
[Round "4"]
[White "Szczepkowska, Karina"]
[Black "Ilyuchyk, Yana"]
[Result "1/2-1/2"]
[ECO "E94"]
[WhiteElo "2403"]
[BlackElo "2098"]
[Annotator "ChessBase"]
[PlyCount "83"]
[EventDate "2018.??.??"]
[EventType "swiss"]
[EventCountry "SVK"]
[SourceTitle "playchess.com"]
[Source "ChessBase"]
[SourceQuality "1"]
[TimeControl "40/5400+30:1800+30"]

1. d4 {[%emt 0:00:00]} Nf6 {[%emt 0:00:05]} 2. c4 {[%emt 0:00:00]} d6 {[%emt 0:00:03]} 3. Nc3 {[%emt 0:00:08]} Nbd7 {[%emt 0:00:06]} 4. e4 {[%emt 0:01:59]} e5 {[%emt 0:00:21]} 5. Nf3 {[%emt 0:00:23]} g6 {[%emt 0:00:12]} 6. Be2 {[%emt 0:01:26]} Bg7 {[%emt 0:00:06]} 7. O-O {[%emt 0:00:05]} O-O {[%emt 0:00:04]} 8. Be3 {[%emt 0:00:22]} Qe7 {[%emt 0:00:11]} 9. d5 {[%emt 0:09:51]} Nc5 {[%emt 0:06:01]} 10. Nd2 {[%emt 0:04:18]} a5 {[%emt 0:03:41]} 11. b3 {[%emt 0:07:28]} Ne8 {[%emt 0:09:34]} 12. a3 {[%emt 0:01:35]} f5 {[%emt 0:00:37]} 13. f3 {[%emt 0:01:33]} Nf6 {[%emt 0:07:35]} 14. Rb1 {[%emt 0:13:20]} Bd7 {[%emt 0:06:49]} 15. b4 {[%emt 0:01:59]} axb4 {[%emt 0:00:13]} 16. axb4 {[%emt 0:00:05]} Na4 {[%emt 0:00:07]} 17. Nxa4 {[%emt 0:01:28]} Rxa4 {[%emt 0:05:13]} 18. c5 {[%emt 0:02:09]} Ra3 {[%emt 0:07:46]} 19. Bf2 {[%emt 0:05:23]} Bh6 {[%emt 0:13:48]} 20. Nc4 {[%emt 0:06:23]} Ra2 {[%emt 0:11:17]} 21. c6 {[%emt 0:12:00]} bxc6 {[%emt 0:03:33]} 22. dxc6 {[%emt 0:00:15]} Be6 {[%emt 0:02:53]} 23. exf5 {[%emt 0:06:50]} gxf5 {[%emt 0:00:51]} 24. Ra1 {[%emt 0:03:40]} Rxa1 {[%emt 0:02:49]} 25. Qxa1 {[%emt 0:00:01]} Nd5 {[%emt 0:00:12]} 26. Rb1 {[%emt 0:01:02]} Qg7 {[%emt 0:01:56]} 27. Bf1 {[%emt 0:01:01]} Nf4 {[%emt 0:00:44]} 28. g3 {[%emt 0:07:59]} Bd5 {[%emt 0:01:21]} 29. Qc3 {[%emt 0:01:49]} Ne6 {[%emt 0:04:12]} 30. b5 {[%emt 0:03:30]} Nd4 {[%emt 0:04:26]} 31. Bxd4 {[%emt 0:00:07]} exd4 {[%emt 0:00:02]} 32. Qd3 {[%emt 0:00:55]} Kh8 {[%emt 0:04:03]} 33. Bg2 {[%emt 0:04:18]} Bxc4 {[%emt 0:01:49]} 34. Qxc4 {[%emt 0:00:07]} Be3+ {[%emt 0:00:07]} 35. Kh1 {[%emt 0:00:21]} f4 {[%emt 0:02:12]} 36. g4 {[%emt 0:02:31]} d3 {[%emt 0:01:13]} 37. Qxd3 {[%emt 0:00:05]} Ra8 {[%emt 0:00:27]} 38. Bf1 {[%emt 0:01:28]} Ra1 {[%emt 0:01:16]} 39. Qe4 {[%emt 0:00:53]} Rxb1 {[%emt 0:01:10]} 40. Qxb1 {[%emt 0:00:00]} Qe5 {[%emt 0:00:39]} 41. Bd3 {[%emt 0:02:37]} h6 {[%emt 0:01:10]} 42. Kg2 {[%emt 0:09:02]} 1/2-1/2

[Event "EIWCC 2018"]
[Site "Vysoke Tatry"]
[Date "2018.04.11"]
[Round "4"]
[White "Hoolt, Sarah"]
[Black "Ionescu, Irina"]
[Result "1/2-1/2"]
[ECO "C26"]
[WhiteElo "2393"]
[BlackElo "2247"]
[Annotator "NA"]
[PlyCount "79"]
[EventDate "2018.??.??"]
[EventType "swiss"]
[EventCountry "SVK"]
[SourceTitle "playchess.com"]
[Source "ChessBase"]
[SourceQuality "1"]
[TimeControl "40/5400+30:1800+30"]

1. e4 {[%emt 0:00:00]} e5 {[%emt 0:00:14]} 2. Nc3 {[%emt 0:00:00]} Nf6 {[%emt 0:00:31]} 3. g3 {[%emt 0:00:00]} d5 {[%emt 0:01:13]} 4. exd5 {[%emt 0:00:06]} Nxd5 {[%emt 0:00:08]} 5. Bg2 {[%emt 0:00:09]} Nxc3 {[%emt 0:07:47]} 6. bxc3 {[%emt 0:00:05]} Bd6 {[%emt 0:01:21]} 7. Nf3 {[%emt 0:01:06]} O-O {[%emt 0:02:36]} 8. O-O {[%emt 0:01:25]} Nc6 {[%emt 0:02:57]} 9. Rb1 {[%emt 0:01:47]} Bg4 {[%emt 0:06:52] C47: Scotch Four Knights and Four Knights with 4 g3} (9... Rb8 10. d3 Bf5 11. h3 b6 12. Ng5 Qd7 13. g4 Bg6 14. h4 f6 15. h5 Be8 16. Ne4 h6 17. Ng3 {0-1 (45) Chigaev,M (2560)-Kuzubov,Y (2689) Batumi 2018}) 10. h3 {[%emt 0:03:25]} Bh5 {[%emt 0:00:16]} 11. Qe1 {[%emt 0:06:21]} Rb8 {[%emt 0:05:42]} 12. d3 {[%emt 0:02:00] LiveBook: 5 Games} Re8 {[%emt 0:02:13]} 13. Nh4 $146 {[%emt 0:09:10]} ({Predecessor:} 13. Ng5 Bg6 14. Rxb7 Rxb7 15. Bxc6 Rb1 16. Bxe8 Qxe8 17. c4 Qc6 18. Qe2 h6 19. Nf3 e4 20. dxe4 {1-0 (28) Polihroniade,E (2110)-Khadilkar,V Thessaloniki 1984}) 13... Bc5 {[%emt 0:11:02]} (13... f6 $11 {remains equal.}) 14. Rb5 {[%emt 0:07:10]} Bb6 {[%emt 0:06:08]} 15. Bxc6 {[%emt 0:14:09]} bxc6 {[%emt 0:00:06]} 16. Rxe5 {[%emt 0:00:12]} Qd7 {[%emt 0:03:21]} 17. g4 {[%emt 0:05:44]} f6 {[%emt 0:04:45]} 18. Re4 {[%emt 0:01:56]} Bf7 {[%emt 0:02:21]} 19. c4 {[%emt 0:02:25]} h5 {[%emt 0:05:00]} 20. Kh1 {[%emt 0:18:28]} Rxe4 {[%emt 0:04:37]} 21. Qxe4 {[%emt 0:00:07]} Re8 {[%emt 0:00:06]} 22. Qf3 {[%emt 0:01:09]} hxg4 {[%emt 0:06:26]} 23. hxg4 {[%emt 0:00:04]} Be6 {[%emt 0:00:58]} 24. Rg1 {[%emt 0:06:53]} Kf7 {[%emt 0:07:51]} 25. Nf5 {[%emt 0:00:25]} Rh8+ {[%emt 0:08:58]} 26. Kg2 {[%emt 0:00:06]} Bxf5 $16 {[%emt 0:03:06]} 27. gxf5 {[%emt 0:01:49]} Qd4 {[%emt 0:01:40]} 28. Be3 {[%emt 0:02:44]} Qe5 {[%emt 0:00:26]} 29. Rh1 {[%emt 0:08:22]} Rxh1 {[%emt 0:00:32]} 30. Kxh1 {[%emt 0:00:01]} Bxe3 {[%emt 0:01:07]} 31. fxe3 {[%emt 0:01:39]} Qa1+ {[%emt 0:00:19]} 32. Kg2 {[%emt 0:00:08]} Qxa2 {[%emt 0:00:08]} 33. Qxc6 {[%emt 0:03:56]} Qxc2+ {[%emt 0:00:25]} 34. Kg3 {[%emt 0:00:36]} Qxd3 {[%emt 0:00:29]} 35. Qxc7+ {[%emt 0:00:20]} Kg8 {[%emt 0:00:26]} 36. Qxa7 {[%emt 0:01:07]} Qxc4 {[%emt 0:01:09]} 37. Qa8+ {[%emt 0:00:16]} Kh7 {[%emt 0:00:23]} 38. Qh1+ {[%emt 0:00:04]} Kg8 {[%emt 0:00:04]} 39. Qa8+ {[%emt 0:01:06]} Kh7 {[%emt 0:00:05]} 40. Qh1+ {[%emt 0:00:00]} 1/2-1/2

[Event "EIWCC 2018"]
[Site "Vysoke Tatry"]
[Date "2018.04.11"]
[Round "4"]
[White "Badelka, Olga"]
[Black "Sargsyan, Anna M."]
[Result "1-0"]
[ECO "D19"]
[WhiteElo "2375"]
[BlackElo "2276"]
[Annotator "ChessBase"]
[PlyCount "86"]
[EventDate "2018.??.??"]
[EventType "swiss"]
[EventCountry "SVK"]
[SourceTitle "playchess.com"]
[Source "ChessBase"]
[SourceQuality "1"]
[TimeControl "40/5400+30:1800+30"]

1. d4 {[%emt 0:00:00]} d5 {[%emt 0:00:08]} 2. c4 {[%emt 0:00:00]} c6 {[%emt 0:00:07]} 3. Nf3 {[%emt 0:00:00]} Nf6 {[%emt 0:00:05]} 4. Nc3 {[%emt 0:00:00]} dxc4 {[%emt 0:00:09]} 5. a4 {[%emt 0:00:00]} Bf5 {[%emt 0:00:08]} 6. e3 {[%emt 0:00:00]} e6 {[%emt 0:00:10]} 7. Bxc4 {[%emt 0:00:05]} Bb4 {[%emt 0:00:05]} 8. O-O {[%emt 0:00:08]} Nbd7 {[%emt 0:00:02]} 9. Qe2 {[%emt 0:06:22]} O-O {[%emt 0:00:07]} 10. e4 {[%emt 0:00:31]} Bg6 {[%emt 0:00:05]} 11. e5 {[%emt 0:00:53]} Nd5 {[%emt 0:00:07]} 12. Nxd5 {[%emt 0:00:42]} cxd5 {[%emt 0:00:06]} 13. Bd3 {[%emt 0:00:04]} Bxd3 {[%emt 0:03:10]} 14. Qxd3 {[%emt 0:00:04]} Be7 {[%emt 0:00:24]} 15. Bd2 {[%emt 0:05:41]} a5 {[%emt 0:04:49]} 16. Qb5 {[%emt 0:05:16]} Ra7 {[%emt 0:00:24]} 17. Rac1 {[%emt 0:11:45]} Nb8 {[%emt 0:00:54]} 18. g3 {[%emt 0:00:54]} Nc6 {[%emt 0:00:51]} 19. h4 {[%emt 0:02:51]} f6 {[%emt 0:12:46]} 20. exf6 {[%emt 0:01:40]} Bxf6 {[%emt 0:01:58]} 21. Qd3 {[%emt 0:05:43]} Qb6 {[%emt 0:01:30]} 22. Bc3 {[%emt 0:01:44]} Raa8 {[%emt 0:00:59]} 23. Rfe1 {[%emt 0:10:01]} Rae8 {[%emt 0:01:51]} 24. Re3 {[%emt 0:05:54]} Qc7 {[%emt 0:02:27]} 25. Rce1 {[%emt 0:00:56]} Qd7 {[%emt 0:13:47]} 26. Qe2 {[%emt 0:08:30]} Kf7 {[%emt 0:04:41]} 27. b3 {[%emt 0:08:10]} Re7 {[%emt 0:04:30]} 28. Bb2 {[%emt 0:00:48]} Rc8 {[%emt 0:00:37]} 29. Ba3 {[%emt 0:00:59]} Ree8 {[%emt 0:02:13]} 30. Qd2 {[%emt 0:01:25]} Kg8 {[%emt 0:04:06]} 31. Kg2 {[%emt 0:01:59]} g6 {[%emt 0:01:22]} 32. Rd3 {[%emt 0:03:53]} Qg7 {[%emt 0:02:06]} 33. Bd6 {[%emt 0:04:41]} b6 {[%emt 0:05:31]} 34. Rh1 {[%emt 0:05:08]} Red8 {[%emt 0:05:59]} 35. Bf4 {[%emt 0:02:44]} e5 {[%emt 0:01:42]} 36. dxe5 {[%emt 0:00:19]} Nxe5 {[%emt 0:03:10]} 37. Bxe5 {[%emt 0:00:12]} Bxe5 {[%emt 0:00:07]} 38. Rxd5 {[%emt 0:00:38]} Bf6 {[%emt 0:00:05]} 39. Rc1 {[%emt 0:06:42]} Qf7 {[%emt 0:00:47]} 40. Rxc8 {[%emt 0:00:00]} Rxc8 {[%emt 0:00:00]} 41. Rd7 {[%emt 0:02:43]} Bc3 {[%emt 0:06:42]} 42. Qd6 {[%emt 0:10:29]} Qf6 {[%emt 0:02:21]} 43. Qd5+ {[%emt 0:00:45]} Kh8 {[%emt 0:00:19]} 1-0

[Event "EIWCC 2018"]
[Site "Vysoke Tatry"]
[Date "2018.04.11"]
[Round "4"]
[White "Balajayeva, Khanim"]
[Black "Chernyak, Viktoria"]
[Result "0-1"]
[ECO "C16"]
[WhiteElo "2348"]
[BlackElo "2196"]
[Annotator "NA"]
[PlyCount "102"]
[EventDate "2018.??.??"]
[EventType "swiss"]
[EventCountry "SVK"]
[SourceTitle "playchess.com"]
[Source "ChessBase"]
[SourceQuality "1"]
[TimeControl "40/5400+30:1800+30"]

1. e4 {[%emt 0:00:00]} e6 {[%emt 0:00:14]} 2. d4 {[%emt 0:00:00]} d5 {[%emt 0:00:17]} 3. Nc3 {[%emt 0:00:00]} Bb4 {[%emt 0:00:06]} 4. e5 {[%emt 0:00:00]} Ne7 {[%emt 0:00:04]} 5. a3 {[%emt 0:00:07]} Bxc3+ {[%emt 0:00:07]} 6. bxc3 {[%emt 0:00:03]} b6 {[%emt 0:00:59]} 7. Qg4 {[%emt 0:09:15]} Ng6 {[%emt 0:04:01]} 8. h4 {[%emt 0:02:02]} h5 {[%emt 0:00:20]} 9. Qg3 {[%emt 0:00:14]} Ba6 {[%emt 0:03:05]} 10. Bxa6 {[%emt 0:07:41]} Nxa6 {[%emt 0:00:02]} 11. Ne2 {[%emt 0:05:44] C16: French: 3 Nc3 Bb4 4 e5: Lines without ...c5} Qd7 {[%emt 0:03:58]} 12. Qd3 {[%emt 0:08:35] LiveBook: 3 Games} (12. a4 c5 13. O-O Rc8 14. Qd3 Nb8 15. Bg5 Nc6 16. Ng3 Nge7 17. Rfd1 cxd4 18. cxd4 Nf5 19. Nxf5 exf5 {1-0 (68) Hou,Y (2635)-Kramnik,V (2810) Medias 2016}) 12... Qa4 {[%emt 0:11:24]} 13. Bg5 {[%emt 0:06:46]} Nb8 {[%emt 0:03:37]} (13... c5 $11) 14. O-O {[%emt 0:01:27]} Nc6 {[%emt 0:01:17]} 15. Ng3 {[%emt 0:17:03]} Nge7 {[%emt 0:03:25]} 16. Qe2 $146 {[%emt 0:02:19]} ({Predecessor:} 16. Rfb1 Kd7 {0-1 (64) Vajic,G (2269)-Gavric,M (2403) Banja Vrucica 2013}) 16... g6 {[%emt 0:10:38]} 17. Rfd1 {[%emt 0:11:04]} O-O-O {[%emt 0:09:33]} 18. Nf1 {[%emt 0:00:09]} Rd7 {[%emt 0:04:28]} 19. Ne3 {[%emt 0:00:26]} Kb8 {[%emt 0:01:45]} 20. Re1 {[%emt 0:08:45]} Na5 {[%emt 0:02:20]} 21. f3 {[%emt 0:04:27]} Qc6 {[%emt 0:04:16]} 22. Qd3 {[%emt 0:01:54]} Nf5 {[%emt 0:04:54]} 23. Bf6 {[%emt 0:05:25]} Rg8 {[%emt 0:12:32]} 24. g4 {[%emt 0:00:51]} (24. Nd1 $11 {keeps the balance.}) 24... Ng7 {[%emt 0:01:45]} 25. Kf2 {[%emt 0:03:14]} Ne8 {[%emt 0:00:50]} 26. gxh5 {[%emt 0:01:11]} Nxf6 {[%emt 0:01:54]} 27. exf6 {[%emt 0:00:03]} gxh5 {[%emt 0:00:02]} 28. Rg1 {[%emt 0:01:21]} Rh8 {[%emt 0:00:56]} 29. Rg5 {[%emt 0:00:21]} Qd6 {[%emt 0:00:35]} 30. Ng2 {[%emt 0:03:35]} Nc4 {[%emt 0:00:35]} 31. a4 {[%emt 0:00:15]} Rh6 {[%emt 0:02:36]} 32. f4 {[%emt 0:00:38]} Rd8 {[%emt 0:00:57]} ({Don't take} 32... Rxf6 33. Rxh5 Rd8 34. Rg5 $17) 33. Qe2 {[%emt 0:00:57]} Rdh8 {[%emt 0:00:13]} 34. Rg1 {[%emt 0:00:24]} Kb7 {[%emt 0:00:57]} 35. Ke1 {[%emt 0:00:18]} Qa3 {[%emt 0:01:51]} 36. Qd3 {[%emt 0:00:14]} Rxf6 {[%emt 0:00:30]} 37. Ke2 {[%emt 0:00:18]} Qxa4 {[%emt 0:00:39]} 38. Rf1 {[%emt 0:00:22]} Nb2 {[%emt 0:01:02]} 39. Qd2 $19 {[%emt 0:00:11]} a5 {[%emt 0:01:19]} 40. Kf2 {[%emt 0:00:00]} Nc4 {[%emt 0:01:16]} 41. Qd3 {[%emt 0:02:35]} Nd6 {[%emt 0:00:44]} 42. Kg1 {[%emt 0:00:16]} Ne4 {[%emt 0:00:51]} 43. Rg7 {[%emt 0:00:06]} Qe8 {[%emt 0:00:25]} 44. c4 {[%emt 0:01:28]} Qf8 {[%emt 0:00:23]} 45. cxd5 {[%emt 0:00:33]} exd5 {[%emt 0:00:20]} 46. Qb3 {[%emt 0:00:18]} Rd6 {[%emt 0:00:40]} 47. Rg5 {[%emt 0:01:54]} Nxg5 {[%emt 0:00:08]} 48. fxg5 {[%emt 0:00:03]} Qg7 {[%emt 0:00:05]} 49. c3 {[%emt 0:00:04]} Qg6 {[%emt 0:01:51]} 50. Ne3 {[%emt 0:03:25]} Qe4 {[%emt 0:00:31]} 51. Nf5 {[%emt 0:00:02]} Rd7 {[%emt 0:01:11]} 0-1

[Event "EIWCC 2018"]
[Site "Vysoke Tatry"]
[Date "2018.04.11"]
[Round "4"]
[White "Klek, Hanna Marie"]
[Black "Motycakova, Monika"]
[Result "1/2-1/2"]
[ECO "C24"]
[WhiteElo "2327"]
[BlackElo "2207"]
[Annotator "ChessBase"]
[PlyCount "82"]
[EventDate "2018.??.??"]
[EventType "swiss"]
[EventCountry "SVK"]
[SourceTitle "playchess.com"]
[Source "ChessBase"]
[SourceQuality "1"]
[TimeControl "40/5400+30:1800+30"]

1. e4 {[%emt 0:00:00]} e5 {[%emt 0:00:06]} 2. Bc4 {[%emt 0:00:00]} Nf6 {[%emt 0:00:13]} 3. d3 {[%emt 0:00:00]} Nc6 {[%emt 0:00:18]} 4. Nc3 {[%emt 0:00:00]} Na5 {[%emt 0:00:31]} 5. Qf3 {[%emt 0:00:00]} c6 {[%emt 0:00:42]} 6. Nge2 {[%emt 0:00:07]} b5 {[%emt 0:00:41]} 7. Bb3 {[%emt 0:00:06]} Bc5 {[%emt 0:00:08]} 8. Ng3 {[%emt 0:00:11]} Nxb3 {[%emt 0:04:23]} 9. axb3 {[%emt 0:00:07]} d6 {[%emt 0:03:25]} 10. h3 {[%emt 0:00:05]} h6 {[%emt 0:05:13]} 11. O-O {[%emt 0:01:18]} O-O {[%emt 0:00:57]} 12. Nce2 {[%emt 0:05:49]} Re8 {[%emt 0:10:31]} 13. Nf5 {[%emt 0:01:12]} Bxf5 {[%emt 0:02:33]} 14. Qxf5 {[%emt 0:00:12]} Qd7 {[%emt 0:10:05]} 15. Qf3 {[%emt 0:03:06]} Re6 {[%emt 0:07:49]} 16. Ng3 {[%emt 0:01:43]} d5 {[%emt 0:08:01]} 17. Nf5 {[%emt 0:05:15]} Kh7 {[%emt 0:02:18]} 18. Ra6 {[%emt 0:08:09]} Qb7 {[%emt 0:05:07]} 19. Ra2 {[%emt 0:01:07]} Rd8 {[%emt 0:06:30]} 20. Qg3 {[%emt 0:05:46]} Bf8 {[%emt 0:04:28]} 21. Be3 {[%emt 0:06:24]} a6 {[%emt 0:00:16]} 22. Rfa1 {[%emt 0:07:26]} d4 {[%emt 0:01:20]} 23. Bd2 {[%emt 0:01:37]} c5 {[%emt 0:00:11]} 24. f4 {[%emt 0:07:35]} exf4 {[%emt 0:04:25]} 25. Bxf4 {[%emt 0:00:59]} Rd7 {[%emt 0:08:26]} 26. Qh4 {[%emt 0:07:05]} Ng8 {[%emt 0:02:09]} 27. Qf2 {[%emt 0:03:36]} Ne7 {[%emt 0:01:12]} 28. b4 {[%emt 0:10:36]} Ng6 {[%emt 0:06:51]} 29. bxc5 {[%emt 0:02:00]} Nxf4 {[%emt 0:01:46]} 30. Qxf4 {[%emt 0:00:08]} Bxc5 {[%emt 0:00:12]} 31. Rf1 {[%emt 0:01:54]} Ba7 {[%emt 0:01:03]} 32. g3 {[%emt 0:04:16]} Bb8 {[%emt 0:00:59]} 33. Qd2 {[%emt 0:00:11]} Rg6 {[%emt 0:01:23]} 34. Rf3 {[%emt 0:00:17]} Be5 {[%emt 0:00:31]} 35. Kg2 {[%emt 0:02:02]} Qc8 {[%emt 0:00:44]} 36. b3 {[%emt 0:01:09]} Rc7 {[%emt 0:00:42]} 37. Rf2 {[%emt 0:01:24]} Rc3 {[%emt 0:01:10]} 38. Qd1 {[%emt 0:03:36]} Qc7 {[%emt 0:00:58]} 39. g4 {[%emt 0:04:16]} Rc5 {[%emt 0:00:57]} 40. Kh1 {[%emt 0:00:00]} Rf6 {[%emt 0:00:33]} 41. Qd2 {[%emt 0:12:18]} Rfc6 {[%emt 0:11:53]} 1/2-1/2

[Event "EIWCC 2018"]
[Site "Vysoke Tatry"]
[Date "2018.04.11"]
[Round "4"]
[White "Kulon, Klaudia"]
[Black "Dwilewicz, Katarzyna"]
[Result "1-0"]
[ECO "C44"]
[WhiteElo "2319"]
[BlackElo "1967"]
[Annotator "NA"]
[PlyCount "71"]
[EventDate "2018.??.??"]
[EventType "swiss"]
[EventCountry "SVK"]
[SourceTitle "playchess.com"]
[Source "ChessBase"]
[SourceQuality "1"]
[TimeControl "40/5400+30:1800+30"]

1. e4 {[%emt 0:00:00]} e5 {[%emt 0:00:05]} 2. Nf3 {[%emt 0:00:00]} Nc6 {[%emt 0:00:03]} 3. d4 {[%emt 0:00:00]} exd4 {[%emt 0:00:09]} 4. Nxd4 {[%emt 0:00:00]} Bb4+ {[%emt 0:01:31]} 5. c3 {[%emt 0:00:27]} Be7 {[%emt 0:00:36]} 6. Bd3 {[%emt 0:01:39]} Nf6 {[%emt 0:08:45]} 7. O-O {[%emt 0:03:20]} O-O {[%emt 0:05:34]} 8. Nf5 {[%emt 0:04:48]} Bc5 {[%emt 0:06:19]} 9. Bg5 {[%emt 0:04:16]} Ne5 {[%emt 0:11:06]} 10. b4 {[%emt 0:07:05]} Bb6 $1 {[%emt 0:07:32]} 11. a4 {[%emt 0:00:06]} a5 {[%emt 0:03:10]} 12. Bc2 {[%emt 0:02:53]} h6 {[%emt 0:08:19]} 13. Be3 {[%emt 0:02:42]} Bxe3 {[%emt 0:02:24]} 14. Nxe3 {[%emt 0:00:05]} d6 {[%emt 0:01:30]} 15. h3 {[%emt 0:00:22]} c6 {[%emt 0:01:31]} 16. Qd4 {[%emt 0:04:42] [#]} ({White should play} 16. Re1 $11) 16... Nh5 {[%emt 0:19:11]} (16... Nf3+ $1 $17 17. gxf3 Bxh3) 17. f4 {[%emt 0:10:30]} Ng3 $11 {[%emt 0:12:22]} 18. Rf2 {[%emt 0:01:20]} Ng4 {[%emt 0:05:01]} 19. Nf1 {[%emt 0:16:20]} Nxf2 {[%emt 0:02:45]} 20. Nxg3 {[%emt 0:00:03]} Nxh3+ {[%emt 0:00:43]} 21. gxh3 {[%emt 0:00:01]} Qh4 {[%emt 0:00:26]} 22. Qf2 {[%emt 0:00:07]} Bxh3 {[%emt 0:00:54]} 23. Nd2 {[%emt 0:00:57]} Rfe8 {[%emt 0:00:30]} 24. Nc4 {[%emt 0:01:41]} Re6 {[%emt 0:01:17]} 25. f5 {[%emt 0:00:57]} Rf6 {[%emt 0:00:32]} 26. Rd1 {[%emt 0:01:20]} axb4 {[%emt 0:00:30]} 27. cxb4 {[%emt 0:00:08]} b5 {[%emt 0:00:34]} 28. Nb6 {[%emt 0:00:24]} Re8 {[%emt 0:00:29]} 29. a5 {[%emt 0:04:46]} d5 {[%emt 0:00:23]} 30. exd5 {[%emt 0:01:22]} cxd5 {[%emt 0:00:22]} 31. Nxd5 {[%emt 0:02:38]} Rd6 {[%emt 0:00:53]} 32. f6 {[%emt 0:00:14]} gxf6 {[%emt 0:00:30]} 33. Ne7+ {[%emt 0:00:20]} Rxe7 {[%emt 0:00:01]} 34. Rxd6 {[%emt 0:00:05]} Re5 {[%emt 0:00:37]} 35. Rd8+ {[%emt 0:00:14]} Kg7 {[%emt 0:00:02]} 36. Nf5+ {[%emt 0:00:12]} 1-0

[Event "EIWCC 2018"]
[Site "Vysoke Tatry"]
[Date "2018.04.11"]
[Round "4"]
[White "Warakomska, Anna"]
[Black "Richterova, Natasa"]
[Result "1-0"]
[ECO "D00"]
[WhiteElo "2306"]
[BlackElo "2181"]
[Annotator "NA"]
[PlyCount "89"]
[EventDate "2018.??.??"]
[EventType "swiss"]
[EventCountry "SVK"]
[SourceTitle "playchess.com"]
[Source "ChessBase"]
[SourceQuality "1"]
[TimeControl "40/5400+30:1800+30"]

1. d4 {[%emt 0:00:00]} d5 {[%emt 0:00:12]} 2. Bf4 {[%emt 0:00:00]} Nf6 {[%emt 0:00:39]} 3. e3 {[%emt 0:00:01]} Bf5 {[%emt 0:07:00]} 4. c4 {[%emt 0:06:20]} c6 {[%emt 0:01:35]} 5. Nc3 {[%emt 0:07:16]} e6 {[%emt 0:01:29] D10: Slav Defence: 3 cxd5 (without early Nf3) and 3 Nc3} 6. Qb3 {[%emt 0:00:25]} (6. Nf3 Nbd7 7. Be2 Be7 8. h3 h6 9. O-O O-O 10. a3 a6 11. Rc1 Ne4 12. Qb3 Qb6 13. Qa2 Rac8 14. Rfd1 Rfd8 15. b4 dxc4 16. Nxe4 Bxe4 17. Nd2 Bd3 18. Nxc4 Bxc4 19. Rxc4 {1-0 (59) Laznicka,V (2647)-Short,N (2678) Riadh 2017}) 6... Qb6 {[%emt 0:08:32]} 7. c5 {[%emt 0:00:54]} Qxb3 {[%emt 0:00:06]} 8. axb3 {[%emt 0:00:03]} Nbd7 {[%emt 0:00:53]} 9. b4 {[%emt 0:00:56]} Nh5 {[%emt 0:01:08] LiveBook: 7 Games} 10. b5 {[%emt 0:12:46]} (10. Bc7 $16) 10... e5 $2 {[%emt 0:07:00]} (10... Nxf4 $11 {and Black is okay.} 11. exf4 Be7) 11. Bxe5 {[%emt 0:03:08]} Nxe5 {[%emt 0:00:37]} 12. dxe5 {[%emt 0:03:51]} g5 {[%emt 0:12:50]} 13. Be2 {[%emt 0:05:56]} Ng7 $146 {[%emt 0:01:34]} 14. b4 {[%emt 0:01:36]} Be7 {[%emt 0:02:08]} (14... Bd7 $16 {might work better.} 15. Nf3 Ne6) 15. Nf3 {[%emt 0:03:40]} Ne6 {[%emt 0:02:22]} 16. O-O {[%emt 0:04:12]} f6 {[%emt 0:02:54]} 17. bxc6 {[%emt 0:04:36]} bxc6 {[%emt 0:01:45]} 18. Ra6 {[%emt 0:03:16]} fxe5 {[%emt 0:11:28]} (18... Rc8 $142 19. Rxa7 Bd8) 19. Nxe5 {[%emt 0:10:04]} d4 {[%emt 0:05:40]} 20. exd4 {[%emt 0:09:11]} Nxd4 {[%emt 0:00:40]} 21. Bh5+ {[%emt 0:01:47]} Kf8 {[%emt 0:00:54]} 22. Rd1 {[%emt 0:03:10]} Bf6 {[%emt 0:01:36]} 23. Nf7 {[%emt 0:00:37]} Rg8 {[%emt 0:01:20]} 24. Nd5 {[%emt 0:04:22]} cxd5 {[%emt 0:10:57]} 25. Rxf6 {[%emt 0:00:06]} Kg7 {[%emt 0:01:49]} 26. Ra6 {[%emt 0:01:26]} Nc2 {[%emt 0:09:21]} 27. Nd6 {[%emt 0:00:18]} Rgf8 {[%emt 0:04:40]} 28. b5 {[%emt 0:03:24]} Nb4 {[%emt 0:01:21]} 29. Nxf5+ {[%emt 0:00:26]} Rxf5 {[%emt 0:00:00]} 30. Ra4 {[%emt 0:00:18]} a5 {[%emt 0:01:35]} 31. bxa6 {[%emt 0:00:31]} Nc6 {[%emt 0:00:44]} 32. Bf3 $18 {[%emt 0:00:33]} Re5 {[%emt 0:00:46]} 33. g3 {[%emt 0:00:59]} Ra7 {[%emt 0:00:38]} 34. Rxd5 {[%emt 0:00:43]} Re1+ {[%emt 0:00:18]} 35. Kg2 {[%emt 0:00:05]} Ne5 {[%emt 0:00:35]} 36. Be4 {[%emt 0:04:00]} Kf6 {[%emt 0:00:29]} 37. Rd6+ {[%emt 0:00:08]} Kg7 {[%emt 0:00:38]} 38. Bb7 {[%emt 0:01:38]} Rc1 {[%emt 0:00:31]} 39. Rd5 {[%emt 0:00:38]} Kf6 {[%emt 0:00:13]} 40. Re4 {[%emt 0:00:00]} Nc4 {[%emt 0:00:21]} 41. c6 {[%emt 0:01:39]} Nb6 {[%emt 0:05:19]} 42. Rd6+ {[%emt 0:04:27]} Kf5 {[%emt 0:02:44]} 43. Re8 {[%emt 0:00:16]} Nc4 {[%emt 0:02:45]} 44. Rd5+ {[%emt 0:00:23]} Kf6 {[%emt 0:00:19]} 45. c7 {[%emt 0:00:18]} 1-0